fUSD/lending_fUSD_20250428
["ID","MTS","AMOUNT","RATE_DAILY","PERIOD"]
[359231013,1745854232604,-500.0,0.00019999,2]
[359231015,1745854232614,-709.3411567,0.00019999,2]
[359231017,1745854232623,-1432.58227663,0.00019999,2]
[359231019,1745854232633,-616.0,0.0002,2]
[359231021,1745854232641,-226.78877839,0.0002,2]
[359231023,1745854232650,-9443.17074547,0.0002,2]
[359231025,1745854232662,-718.30226286,0.0002,2]
[359231027,1745854232675,-640.54032554,0.0002,2]
[359231030,1745854232686,-819.33484271,0.0002,2]
[359231032,1745854232700,-16293.02057976,0.0002,2]
[359231036,1745854232730,-3748.73331426,0.0002,2]
[359231038,1745854232741,-717.83269566,0.0002,2]
[359231041,1745854232756,-556.07613441,0.0002,2]
[359231043,1745854232765,-131.47499087,0.0002,2]
[359231045,1745854232777,-5666.54743258,0.0002,2]
[359231243,1745854238026,-250.0,0.0002,2]
[359231244,1745854238129,-1914.7060113,0.0002,2]
[359231245,1745854238141,-2421.09368215,0.0002,2]
[359231246,1745854238152,-3183.43892849,0.0002,2]
[359231247,1745854238167,-343.47151968,0.0002,2]
[359231249,1745854238178,-1304.00922766,0.0002,2]
[359231251,1745854238189,-636.67596327,0.0002,2]
[359231253,1745854238202,-352.2582495,0.0002,2]
[359231255,1745854238213,-3335.00000002,0.0002,2]
[359231455,1745854240216,-20769.92879833,0.0002,2]
[359231457,1745854240229,-60378.37839933,0.0002,2]
[359231459,1745854240240,-19473.77385123,0.0002,2]
[359231472,1745854240355,-250.83071593,0.0002,2]
[359231540,1745854241108,-96.39636041,0.0002,2]
[359231557,1745854241322,-5280.71598039,0.0002,2]
[359231559,1745854241335,-267.89272377,0.0002,2]
[359231563,1745854241365,-24076.81899997,0.0002,2]
[359231713,1745854244101,-1500.0,0.0002,2]
[359231893,1745854246041,-760.0,0.0002,2]
[359231895,1745854246050,-26.38613432,0.0002,2]
[359231915,1745854246230,-29686.9999895,0.0002,2]
[359231917,1745854246241,-424.73752004,0.0002,2]
[359231919,1745854246252,-568.7749922,0.0002,2]
[359231923,1745854246283,-4702.0,0.0002,2]
[359231926,1745854246294,-8274.752,0.0002,2]
[359231928,1745854246306,-1463.7964658,0.0002,2]
[359231930,1745854246321,-832.60545055,0.0002,2]
[359233115,1745854258711,510.45,0.00017157,2]
[359233214,1745854259646,-159.06429541,0.00019421,2]
[359233504,1745854262635,607.88140988,0.00019009,2]
[359233733,1745854264979,-254.44391713,0.00019421,2]
[359233740,1745854269492,-96.94178746,0.00019421,2]
[359233741,1745854334666,184.15355332,0.00017,2]
[359233742,1745854334689,65.84644668,0.00017,2]
[359233743,1745854335731,300.0,0.00019,2]
[359233744,1745854462392,325.41528657,0.000369,120]
[359233745,1745854545761,9149.11142301,0.00035,120]
[359233746,1745854574063,153.93,0.00019062,2]
[359233747,1745854677661,502.13,0.00019085,2]
[359233748,1745854719496,954.39,0.00019107,2]
[359233749,1745854785198,750.42776784,0.0003698,120]
[359233751,1745854913333,1000.0,0.00018992,2]
[359233752,1745854937514,657.71,0.00036986,60]
[359233753,1745854991781,1002.2573114,0.00036986,60]
[359233754,1745855164156,250.0,0.00018952,7]
[359233755,1745855207695,-253.87186521,0.00019392,2]
[359233756,1745855214038,-4.14972579,0.00019392,2]
[359233757,1745855235933,942.59,0.00018903,2]
[359233758,1745855313976,511.67,0.00016968,2]
[359233759,1745855314195,511.67,0.00019232,2]
[359233760,1745855360638,-250.0,0.0001949,2]
[359233761,1745855360665,-200.25696919,0.00019499,2]
[359233762,1745855360692,-1500.0,0.000195,2]
[359233763,1745855360722,-187.52,0.00019538,2]
[359233764,1745855360750,-250.0,0.00019566,2]
[359233765,1745855360777,-1000.0,0.00019583,2]
[359233766,1745855360806,-1200.0,0.00019599,2]
[359233767,1745855360832,-300.0,0.00019599,2]
[359233768,1745855360860,-500.0,0.00019599,2]
[359233769,1745855360890,-500.0,0.00019599,2]
[359233770,1745855360918,-221.1747418,0.00019599,2]
[359233771,1745855360945,-1678.31715218,0.000196,2]
[359233772,1745855360970,-50000.0,0.000196,2]
[359233773,1745855360997,-57459.3555164,0.000196,2]
[359233774,1745855361024,-150.0,0.00019671,2]
[359233775,1745855361050,-1000.0,0.00019674,2]
[359233776,1745855361077,-1000.0,0.00019677,2]
[359233777,1745855361104,-1000.0,0.00019693,2]
[359233778,1745855361132,-1051.52457805,0.00019736,2]
[359233779,1745855361158,-1000.0,0.00019782,2]
[359233780,1745855361186,-316.4538981,0.00019799,2]
[359233781,1745855361213,-50000.0,0.000198,3]
[359233782,1745855361242,-179.97438428,0.000198,2]
[359233783,1745855361271,-1000.0,0.00019848,2]
[359233784,1745855361299,-179.97438428,0.0001985,2]
[359233785,1745855361326,-1000.0,0.00019874,2]
[359233786,1745855361353,-2279.5855,0.00019886,2]
[359233787,1745855361381,-1985.475,0.00019888,2]
[359233788,1745855361409,-500.0,0.00019899,2]
[359233789,1745855361437,-500.0,0.00019899,2]
[359233790,1745855361464,-500.0,0.00019899,2]
[359233791,1745855361491,-500.0,0.00019899,2]
[359233792,1745855361518,-500.0,0.00019899,2]
[359233793,1745855361545,-500.0,0.00019899,2]
[359233794,1745855361572,-500.0,0.00019899,2]
[359233795,1745855361603,-500.0,0.00019899,2]
[359233796,1745855361632,-500.0,0.00019899,2]
[359233797,1745855361661,-500.0,0.00019899,2]
[359233798,1745855361689,-500.0,0.00019899,2]
[359233799,1745855361721,-500.0,0.00019899,2]
[359233800,1745855361752,-374.04774063,0.00019899,2]
[359233801,1745855361780,-500.0,0.00019899,2]
[359233802,1745855361809,-500.0,0.00019899,2]
[359233803,1745855361836,-1285.4008,0.000199,2]
[359233804,1745855361863,-50000.0,0.000199,3]
[359233805,1745855361892,-157.35153761,0.000199,2]
[359233806,1745855361923,-179.97438428,0.000199,2]
[359233807,1745855361952,-18303.56338281,0.000199,2]
[359233808,1745855361979,-161.34796332,0.000199,2]
[359233809,1745855362006,-3485.08874778,0.000199,2]
[359233810,1745855362035,-1203.29384315,0.000199,2]
[359233811,1745855362063,-207.4,0.00019953,2]
[359233812,1745855362092,-28139.6686666,0.00019986,2]
[359233813,1745855362121,-782.39118013,0.00019986,2]
[359233814,1745855362150,-1611.724339,0.00019986,2]
[359233815,1745855362177,-206.17333859,0.00019999,2]
[359233816,1745855362204,-1452.7,0.00019999,2]
[359233817,1745855362233,-684.0,0.0002,2]
[359233818,1745855362262,-17521.67905484,0.0002,2]
[359233819,1745855362282,-250.0,0.0002,2]
[359233820,1745855362298,-200.25696919,0.0002,2]
[359233821,1745855362328,-1500.0,0.0002,2]
[359233822,1745855362377,-187.52,0.0002,2]
[359233823,1745855362390,-250.0,0.0002,2]
[359233824,1745855362556,-1000.0,0.0002,2]
[359233825,1745855362586,-1200.0,0.0002,2]
[359233826,1745855362597,-300.0,0.0002,2]
[359233827,1745855362637,-500.0,0.0002,2]
[359233828,1745855362670,-500.0,0.0002,2]
[359233829,1745855362681,-221.1747418,0.0002,2]
[359233830,1745855362698,-1678.31715218,0.0002,2]
[359233831,1745855362769,-50000.0,0.0002,2]
[359233832,1745855362785,-57459.3555164,0.0002,2]
[359233833,1745855362814,-150.0,0.0002,2]
[359233834,1745855362826,-1000.0,0.0002,2]
[359233835,1745855362837,-1000.0,0.0002,2]
[359233836,1745855362854,-1000.0,0.0002,2]
[359233837,1745855362867,-1051.52457805,0.0002,2]
[359233838,1745855362950,-1000.0,0.0002,2]
[359233839,1745855362963,-316.4538981,0.0002,2]
[359233840,1745855363033,-50000.0,0.0002,2]
[359233841,1745855363063,-179.97438428,0.0002,2]
[359233842,1745855363075,-1000.0,0.0002,2]
[359233843,1745855363086,-179.97438428,0.0002,2]
[359233844,1745855363104,-1000.0,0.0002,2]
[359233845,1745855363174,-2279.5855,0.0002,2]
[359233846,1745855363190,-1985.475,0.0002,2]
[359233847,1745855363220,-500.0,0.0002,2]
[359233848,1745855363231,-500.0,0.0002,2]
[359233849,1745855363282,-500.0,0.0002,2]
[359233850,1745855363331,-500.0,0.0002,2]
[359233851,1745855363342,-500.0,0.0002,2]
[359233852,1745855363354,-500.0,0.0002,2]
[359233853,1745855363365,-500.0,0.0002,2]
[359233854,1745855363382,-500.0,0.0002,2]
[359233855,1745855363436,-500.0,0.0002,2]
[359233856,1745855363448,-500.0,0.0002,2]
[359233857,1745855363498,-500.0,0.0002,2]
[359233858,1745855363514,-500.0,0.0002,2]
[359233859,1745855363563,-374.04774063,0.0002,2]
[359233860,1745855363575,-500.0,0.0002,2]
[359233861,1745855363586,-500.0,0.0002,2]
[359233862,1745855363597,-1285.4008,0.0002,2]
[359233863,1745855363609,-50000.0,0.0002,2]
[359233864,1745855363620,-157.35153761,0.0002,2]
[359233865,1745855363650,-179.97438428,0.0002,2]
[359233866,1745855363662,-18303.56338281,0.0002,2]
[359233867,1745855363673,-161.34796332,0.0002,2]
[359233868,1745855363727,-3485.08874778,0.0002,2]
[359233869,1745855363739,-1203.29384315,0.0002,2]
[359233870,1745855363751,-207.4,0.0002,2]
[359233871,1745855363763,-28139.6686666,0.0002,2]
[359233872,1745855363775,-782.39118013,0.0002,2]
[359233873,1745855363787,-1611.724339,0.0002,2]
[359233874,1745855363798,-206.17333859,0.0002,2]
[359233875,1745855363814,-1452.7,0.0002,2]
[359233876,1745855363846,-684.0,0.0002,2]
[359233877,1745855363900,-17521.67905484,0.0002,2]
[359233878,1745855363912,-93869.93579396,0.0002,2]
[359233922,1745855432641,-163.47,0.00019539,2]
[359233924,1745855432650,-250.0,0.00019669,2]
[359233926,1745855432661,-200.0,0.00019669,2]
[359233928,1745855432670,-200.0,0.00019787,2]
[359233930,1745855432682,-300.6312032,0.00019799,2]
[359233932,1745855432692,-470.071,0.000198,2]
[359233934,1745855432702,-1000.0,0.000198,2]
[359233936,1745855432712,-1200.0,0.00019898,2]
[359233938,1745855432723,-300.0,0.00019898,2]
[359233940,1745855432736,-624.77743864,0.000199,2]
[359233942,1745855432746,-500.0,0.00019973,2]
[359233944,1745855432755,-500.0,0.00019973,2]
[359233946,1745855432766,-500.0,0.00019973,2]
[359233948,1745855432776,-33435.8951003,0.00019986,2]
[359233950,1745855432785,-300.0,0.00019999,2]
[359233952,1745855432795,-500.0,0.00019999,2]
[359233954,1745855432804,-620.0,0.0002,2]
[359233956,1745855432814,-8760.83952742,0.0002,2]
[359233958,1745855432824,-342773.51210395,0.0002,2]
[359233960,1745855432834,-51849.98665544,0.0002,2]
[359233962,1745855432845,-351.79999999,0.0002,2]
[359234678,1745855440840,-281.603,0.00019799,2]
[359234727,1745855441302,-26.5564293,0.00019799,2]
[359234729,1745855441311,-232.1604382,0.00019986,2]
[359234750,1745855441499,-1634.64184853,0.00019986,2]
[359234753,1745855441511,-1051.64222737,0.00019986,2]
[359234755,1745855441520,-1500.0,0.00019999,2]
[359234757,1745855441529,-1616.0229,0.00019999,2]
[359234759,1745855441539,-37340.18557535,0.0002,2]
[359234852,1745855446212,-557.0,0.0002,2]
[359234854,1745855446222,-2376.13007206,0.0002,2]
[359234855,1745855446231,-301.18034675,0.0002,2]
[359234858,1745855446250,-10000.0,0.0002,2]
[359234861,1745855446261,-1482.33263641,0.0002,2]
[359234863,1745855446270,-481.10853192,0.0002,2]
[359234865,1745855446280,-18839.17559419,0.0002,2]
[359234867,1745855446293,-709.39652791,0.0002,2]
[359234886,1745855446462,-730.25658491,0.0001973,2]
[359234888,1745855446473,-30451.4278779,0.0002,2]
[359234890,1745855446483,-3052.55261179,0.0002,2]
[359234892,1745855446493,-4139.0,0.0002,2]
[359234894,1745855446502,-5651.43161421,0.0002,2]
[359234896,1745855446513,-49930.14611119,0.0002,2]
[359234901,1745855446688,-2436.386,0.0002,2]
[359234948,1745855447049,-439.263825,0.0002,2]
[359234950,1745855447060,-2597.100001,0.0002,2]
[359234952,1745855447072,-1097.20004816,0.0002,2]
[359234969,1745855447217,-1263.76420205,0.0002,2]
[359235252,1745855452345,600.0,0.00036986,60]
[359235253,1745855471331,360.0,0.00036986,60]
[359235254,1745855488729,200.0,0.000194,7]
[359235255,1745855490862,500.0,0.000195,7]
[359235256,1745855493290,800.0,0.000196,7]
[359235257,1745855495164,1000.0,0.000197,7]
[359235258,1745855497197,1300.0,0.000198,7]
[359235259,1745855499395,200.0,0.000199,7]
[359235260,1745855680491,1382.0,0.0003,120]
[359235261,1745855794006,10000.0,0.00036986,60]
[359235262,1745855858895,8753.0,0.00036986,60]
[359235263,1745855912282,10000.0,0.00036986,60]
[359235264,1745855940532,10000.0,0.00036986,60]
[359235265,1745855950380,3000.0,0.00036986,120]
[359235266,1745855956008,10000.0,0.00036986,60]
[359235267,1745856009474,999.0,0.00036986,60]
[359235268,1745856041383,1190.36,0.00019087,2]
[359235269,1745856062697,1000.0,0.00019087,2]
[359235270,1745856132300,470.0,0.00036986,60]
[359235271,1745856159851,939.0,0.00036986,60]
[359235272,1745856161513,2017.61,0.00018969,2]
[359235273,1745856166070,250.0,0.00017,2]
[359235274,1745856167184,300.0,0.00019,2]
[359235275,1745856207816,469.0,0.00036986,60]
[359235276,1745856230305,470.0,0.00036986,60]
[359235277,1745856231071,-150.0,0.00019734,2]
[359235278,1745856231101,-150.0,0.00019744,2]
[359235279,1745856231129,-150.0,0.00019747,2]
[359235280,1745856231159,-150.0,0.00019764,2]
[359235281,1745856231188,-150.0,0.00019784,2]
[359235282,1745856231215,-150.0,0.00019796,2]
[359235283,1745856231243,-292.7514579,0.00019799,2]
[359235284,1745856231271,-200.0,0.000198,2]
[359235285,1745856231299,-200.0,0.00019802,2]
[359235286,1745856231331,-150.0,0.00019808,2]
[359235287,1745856231359,-1200.0,0.00019809,2]
[359235288,1745856231386,-300.0,0.00019809,2]
[359235289,1745856231413,-300.0,0.00019809,2]
[359235290,1745856231440,-14147.76321373,0.0001981,2]
[359235291,1745856231469,-150.0,0.00019814,2]
[359235292,1745856231498,-150.0,0.00019816,2]
[359235293,1745856231526,-150.0,0.00019817,2]
[359235294,1745856231553,-200.0,0.00019823,2]
[359235295,1745856231582,-150.0,0.00019869,2]
[359235296,1745856231609,-150.0,0.00019871,2]
[359235297,1745856231637,-390.06972059,0.00019873,2]
[359235298,1745856231664,-500.0,0.00019873,2]
[359235299,1745856231692,-150.0,0.00019873,2]
[359235300,1745856231719,-1075.05959709,0.0001989,2]
[359235301,1745856231749,-150.0,0.0001989,2]
[359235302,1745856231778,-1861.415,0.00019899,2]
[359235303,1745856231805,-850.0,0.00019899,2]
[359235304,1745856231833,-1000.0,0.000199,2]
[359235305,1745856231860,-500.0,0.000199,2]
[359235306,1745856231886,-505.1743,0.000199,2]
[359235307,1745856231914,-7991.2515,0.000199,2]
[359235308,1745856231941,-833.03658487,0.000199,2]
[359235309,1745856233027,-28985.09325164,0.000199,2]
[359235310,1745856263805,2350.0,0.00036986,60]
[359235311,1745856278464,-300.0,0.00019899,2]
[359235312,1745856278492,-49943.86684039,0.000199,2]
[359235313,1745856278518,-188.71018011,0.000199,2]
[359235314,1745856278695,-3008.7188649,0.000199,2]
[359235315,1745856278722,-165.78196731,0.000199,2]
[359235316,1745856278752,-1172.95127327,0.000199,2]
[359235317,1745856278781,-200.0,0.00019905,2]
[359235318,1745856278814,-150.0,0.0001991,2]
[359235319,1745856278846,-150.0,0.0001992,2]
[359235320,1745856278877,-200.0,0.00019927,2]
[359235321,1745856278906,-150.0,0.0001995,2]
[359235322,1745856278936,-150.0,0.00019953,2]
[359235323,1745856278965,-207.4,0.00019953,2]
[359235324,1745856278996,-170.85936317,0.00019954,2]
[359235325,1745856279030,-151.0,0.00019954,2]
[359235326,1745856279061,-150.0,0.00019966,2]
[359235327,1745856279091,-150.0,0.00019969,2]
[359235328,1745856279121,-500.0,0.00019973,2]
[359235329,1745856279149,-500.0,0.00019973,2]
[359235330,1745856279177,-350.47311599,0.00019973,2]
[359235331,1745856279205,-500.0,0.00019973,2]
[359235332,1745856279232,-500.41447416,0.00019973,2]
[359235333,1745856279259,-500.0,0.00019973,2]
[359235334,1745856279285,-500.0,0.00019973,2]
[359235335,1745856279311,-500.0,0.00019973,2]
[359235336,1745856279338,-2603.7100641,0.00019986,2]
[359235337,1745856279366,-27499.876034,0.00019986,2]
[359235338,1745856279394,-7482.4823919,0.00019986,2]
[359235339,1745856279425,-1489.6634388,0.00019986,2]
[359235340,1745856279453,-150.0,0.00019994,2]
[359235341,1745856279479,-477.04712651,0.00019999,2]
[359235342,1745856279507,-500.0,0.00019999,2]
[359235343,1745856279535,-500.0,0.00019999,2]
[359235344,1745856279564,-500.0,0.00019999,2]
[359235345,1745856279593,-500.0,0.00019999,2]
[359235346,1745856279623,-500.0,0.00019999,2]
[359235347,1745856279652,-500.0,0.00019999,2]
[359235348,1745856279682,-500.0,0.00019999,2]
[359235349,1745856279712,-500.0,0.00019999,2]
[359235350,1745856279740,-500.0,0.00019999,2]
[359235351,1745856279768,-500.0,0.00019999,2]
[359235352,1745856279796,-500.0,0.00019999,2]
[359235353,1745856279824,-500.0,0.00019999,2]
[359235354,1745856279853,-500.0,0.00019999,2]
[359235355,1745856279882,-578.14968912,0.00019999,2]
[359235356,1745856279911,-500.0,0.00019999,2]
[359235357,1745856279940,-500.0,0.00019999,2]
[359235358,1745856279970,-500.0,0.00019999,2]
[359235359,1745856280002,-250.0,0.00019999,2]
[359235360,1745856280032,-500.0,0.00019999,2]
[359235361,1745856280076,-441.01400343,0.00019999,2]
[359235362,1745856280106,-500.0,0.0002,2]
[359235363,1745856281720,250.0,0.00019078,7]
[359235364,1745856282147,-19.16369255,0.0002,2]
[359235365,1745856282160,-15338.80184568,0.0002,2]
[359235366,1745856294821,470.0,0.00036986,60]
[359235367,1745856323228,1753.6743707,0.00036986,60]
[359235368,1745856323434,150.0,0.00018,2]
[359235369,1745856323509,149.80355332,0.00018222,2]
[359235370,1745856323531,0.19644668,0.00018222,2]
[359235371,1745856323581,150.0,0.00018444,2]
[359235372,1745856323639,150.0,0.00018667,2]
[359235373,1745856323710,150.0,0.00018889,2]
[359235374,1745856323775,150.0,0.00019111,2]
[359235375,1745856342626,470.00000008,0.00036986,60]
[359235376,1745856362195,469.9,0.00036986,60]
[359235377,1745856396689,470.0,0.00036986,60]
[359235378,1745856525634,4000.0,0.00018969,2]
[359235379,1745856537053,503.24,0.00017001,2]
[359235380,1745856537413,503.24,0.00019265,2]
[359235381,1745856567467,2017.08565708,0.00019289,2]
[359235382,1745856575551,-267.28634013,0.00019317,2]
[359235383,1745856580834,-283.38257923,0.00019317,2]
[359235385,1745856584851,-170.19539122,0.00019317,2]
[359235386,1745856593093,-187.43587134,0.00019317,2]
[359235387,1745856600148,-197.65509821,0.00019317,2]
[359235388,1745856603390,-161.33106,0.00019317,2]
[359235389,1745856610394,-150.0,0.00019333,4]
[359235390,1745856620208,-250.0,0.00019389,2]
[359235391,1745856621475,155.25,0.00018918,2]
[359235396,1745856632501,-200.0,0.00019444,2]
[359235397,1745856632511,-165.09,0.00019513,2]
[359235398,1745856632520,-555.03878289,0.00019553,2]
[359235399,1745856632530,-150.0,0.00019556,4]
[359235400,1745856632540,-54.79451334,0.00019653,2]
[359235401,1745856632617,-145.20548666,0.00019653,2]
[359235402,1745856632628,-150.0,0.00019778,4]
[359235403,1745856632638,-1133.41085849,0.00019799,2]
[359235404,1745856632649,-66.58914151,0.00019799,2]
[359235405,1745856632659,-300.0,0.00019799,2]
[359235406,1745856632668,-144.03410506,0.00019799,2]
[359235407,1745856632680,-134.07977994,0.00019799,2]
[359235408,1745856632690,-300.0,0.00019799,2]
[359235409,1745856632700,-727.1486,0.000198,2]
[359235410,1745856632709,-451.77162006,0.000198,2]
[359235411,1745856632720,-3.36837994,0.000198,2]
[359235412,1745856632730,-1000.0,0.000198,2]
[359235413,1745856632740,-1260.73161006,0.000198,2]
[359235414,1745856632751,-761.02548994,0.000198,2]
[359235415,1745856632761,-161.34796332,0.000198,2]
[359235416,1745856632771,-694.19715405,0.00019853,2]
[359235418,1745856632780,-952.81,0.00019853,2]
[359235419,1745856632789,-314.88328121,0.00019854,2]
[359235420,1745856632799,-555.0387829,0.00019855,2]
[359235421,1745856632808,-314.88328113,0.00019859,2]
[359235422,1745856632818,-314.88328113,0.00019864,2]
[359235423,1745856632827,-314.88328113,0.00019869,2]
[359235424,1745856632836,-500.87017698,0.00019873,2]
[359235425,1745856632846,-500.0,0.00019873,2]
[359235426,1745856632855,-500.0,0.00019873,2]
[359235427,1745856632864,-500.0,0.00019873,2]
[359235428,1745856632874,-314.88328113,0.00019874,2]
[359235429,1745856632883,-314.88328113,0.0001988,2]
[359235430,1745856632894,-314.88328113,0.00019885,2]
[359235432,1745856632903,-314.88328113,0.0001989,2]
[359235434,1745856632913,-314.88328113,0.00019895,2]
[359235436,1745856632923,-850.0,0.00019898,2]
[359235438,1745856632932,-500.0,0.00019899,2]
[359235440,1745856632942,-500.0,0.00019899,2]
[359235442,1745856632951,-500.0,0.00019899,2]
[359235444,1745856632961,-500.0,0.00019899,2]
[359235446,1745856632970,-500.0,0.00019899,2]
[359235448,1745856632980,-394.16369254,0.00019899,2]
[359235450,1745856632990,-500.0,0.00019899,2]
[359235452,1745856632999,-500.0,0.00019899,2]
[359235454,1745856633009,-500.0,0.00019899,2]
[359235456,1745856633019,-500.0,0.00019899,2]
[359235458,1745856633029,-387155.07958604,0.000199,2]
[359235460,1745856633039,-314.88328113,0.000199,2]
[359235462,1745856633049,-500.0,0.000199,2]
[359235464,1745856633058,-225.8916,0.000199,2]
[359235466,1745856633068,-163.57518956,0.000199,2]
[359235468,1745856633078,-909.61013845,0.000199,2]
[359235470,1745856633091,-2323.39249852,0.000199,2]
[359235472,1745856633102,-21418.03267884,0.00019942,2]
[359235474,1745856633112,-207.4,0.00019953,2]
[359235476,1745856633123,-1106.15736489,0.00019954,2]
[359235478,1745856633133,-500.0,0.00019973,2]
[359235480,1745856633143,-502.86414845,0.00019973,2]
[359235482,1745856633153,-508.75923963,0.00019973,2]
[359235484,1745856633164,-500.0,0.00019973,2]
[359235486,1745856633174,-500.0,0.00019973,2]
[359235488,1745856633184,-500.0,0.00019973,2]
[359235490,1745856633195,-500.0,0.00019973,2]
[359235492,1745856633205,-162.90784992,0.00019973,2]
[359235494,1745856633215,-500.0,0.00019973,2]
[359235496,1745856633225,-2424.5680321,0.00019986,2]
[359235498,1745856633235,-805.143397,0.00019986,2]
[359235500,1745856633245,-10690.018216,0.00019986,2]
[359235502,1745856633255,-28405.6458805,0.00019986,2]
[359235504,1745856633265,-872.0,0.00019996,2]
[359235506,1745856633275,-3996.0,0.00019996,2]
[359235508,1745856633285,-877.0,0.00019996,2]
[359235511,1745856633295,-196.296,0.00019996,2]
[359235514,1745856633305,-500.0,0.00019999,2]
[359235516,1745856633315,-150.0,0.00019999,2]
[359235518,1745856633325,-40638.24009511,0.0002,2]
[359235520,1745856633335,-30012.70343575,0.0002,2]
[359235527,1745856633398,-8846.64457923,0.0002,2]
[359235529,1745856633410,-23143.70470326,0.0002,2]
[359235536,1745856633467,-1280.38744199,0.0002,2]
[359235983,1745856638419,-1132.0,0.00019996,2]
[359235984,1745856638429,-6499.04508113,0.0002,2]
[359235985,1745856638440,-273.4543321,0.0002,2]
[359235986,1745856638560,-911.03,0.0002,2]
[359236012,1745856640700,-3470.3871961,0.0002,2]
[359236013,1745856640712,-2400.68233392,0.0002,2]
[359236014,1745856640723,-938.07,0.0002,2]
[359236015,1745856640943,-2100.05512954,0.0002,2]
[359236016,1745856640955,-4316.23010528,0.0002,2]
[359236017,1745856640967,-606.05829084,0.0002,2]
[359236018,1745856641104,-285.81480427,0.0002,2]
[359236019,1745856641116,-256.31217086,0.0002,2]
[359236088,1745856645172,-47209.16350628,0.0002,2]
[359236089,1745856645373,-144878.64032435,0.0002,2]
[359236090,1745856645384,-272.0374,0.0002,2]
[359236091,1745856645396,-1006.35098741,0.0002,2]
[359236110,1745856646354,-3000.0,0.0002,2]
[359236111,1745856646440,-1950.0,0.0002,2]
[359236112,1745856646451,-2790.15908406,0.0002,2]
[359236113,1745856646694,-1988.61593239,0.0002,2]
[359236233,1745856738723,2220.98789624,0.00019298,2]
[359236234,1745856738748,10000.0,0.00019298,2]
[359236235,1745856738775,10000.0,0.00019298,2]
[359236236,1745856738796,1679.01210376,0.00019298,2]
[359236237,1745856812241,1123.79,0.00030137,120]
[359236238,1745856903264,361.60840874,0.00036986,60]
[359236239,1745856905298,1268.34,0.00019,2]
[359236240,1745856907003,1268.34,0.00019,2]
[359236241,1745856908780,1268.34,0.00019,2]
[359236242,1745856910508,152.01398665,0.00019,2]
[359236243,1745856910529,1116.32601335,0.00019,2]
[359236244,1745857085477,1000.0,0.00019095,2]
[359236245,1745857090551,206.89,0.00019095,2]
[359236246,1745857157788,150.0,0.00019177,2]
[359236247,1745857395788,250.0,0.00018997,7]
[359236248,1745857510472,1631.21617042,0.000154,2]
[359236249,1745857529204,150.0,0.00018,2]
[359236252,1745857563500,261.53571247,0.00017085,2]
[359236253,1745857563523,204.95428753,0.00017085,2]
[359236254,1745857563952,-367.2198218,0.00019349,2]
[359236255,1745857566368,1777.01192413,8e-05,2]
[359236256,1745857568201,-99.2701782,0.00019349,2]
[359236257,1745857568333,52.7298218,0.00018992,2]
[359236258,1745857568354,2412.0401782,0.00018992,2]
[359236259,1745857589344,1976.96693653,0.00015,2]
[359236261,1745857687168,317.0,0.00036986,60]
[359236262,1745857720861,188.20154616,0.00013368,2]
[359236265,1745857730655,200.0,0.00019009,2]